bitfinex/quotes_SOLUSD_20250728
["timestamp","ask_amount","ask_price","bid_price","bid_amount"]
[1753706905839,5.16737154,193.53,193.51,26.0]
[1753706906009,5.16737154,193.53,193.5,26.0]
[1753706906209,5.16737154,193.53,193.51,26.0]
[1753706906533,31.21768553,193.52,193.51,26.0]
[1753706906734,21.95210852,193.52,193.5,26.0]
[1753706908247,21.95210852,193.52,193.51,26.0]
[1753706908708,0.03,193.54,193.52,26.0]
[1753706908913,5.19697481,193.54,193.52,26.0]
[1753706909142,14.46255182,193.54,193.52,26.0]
[1753706909455,14.46255182,193.54,193.51,26.0]
[1753706910141,14.46255182,193.54,193.48,9.26557701]
[1753706910142,5.89697481,193.54,193.5,26.0]
[1753706910337,9.26557701,193.53,193.51,26.0]
[1753706911347,14.46255182,193.54,193.51,26.71]
[1753706911713,14.46255182,193.54,193.51,26.0]
[1753706911936,9.26557701,193.53,193.51,26.0]
[1753706912124,14.43286937,193.53,193.51,26.0]
[1753706912445,0.03,193.52,193.51,26.0]
[1753706913946,0.03,193.52,193.51,26.71]
[1753706914250,0.03,193.52,193.51,26.99432314]
[1753706914919,0.03,193.52,193.51,36.25990015]
[1753706915336,0.03,193.52,193.51,41.42759174]
[1753706916323,0.03,193.52,193.51,78.04759174]
[1753706916833,0.03,193.52,193.51,167.04759174]
[1753706918344,0.03,193.52,193.51,78.04759174]
[1753706918930,0.03,193.52,193.51,74.55470258]
[1753706919848,0.03,193.52,193.51,63.61432314]
[1753706920049,0.03,193.52,193.51,36.6]
[1753706920249,0.03,193.52,193.5,26.0]
[1753706920452,11.62037944,193.51,193.45,90.5831]
[1753706920631,5.77268785,193.47,193.42,0.71]
[1753706920831,5.77268785,193.46,193.45,26.0]
[1753706921148,5.77268785,193.49,193.46,26.0]
[1753706921554,16.78468397,193.5,193.46,26.0]
[1753706921555,10.94037944,193.51,193.47,0.71]
[1753706921854,5.77268785,193.5,193.46,36.64]
[1753706922147,0.68,193.5,193.46,36.64]
[1753706922322,10.94037944,193.51,193.46,37.35]
[1753706922524,5.77268785,193.5,193.46,37.35]
[1753706922740,5.77268785,193.5,193.46,36.64]
[1753706923048,5.77268785,193.47,193.46,26.0]
[1753706923445,6.45268785,193.47,193.46,26.0]
[1753706924036,6.45268785,193.47,193.43,26.0]
[1753706924230,5.77268785,193.45,193.44,26.0]
[1753706924555,10.94198224,193.45,193.44,26.0]
[1753706924930,14.41933081,193.45,193.44,26.0]
[1753706925931,14.41852928,193.48,193.44,26.71]
[1753706926338,5.16849286,193.48,193.45,0.71]
[1753706926751,5.16849286,193.48,193.44,26.0]
[1753706927134,5.16849286,193.48,193.44,26.71]
[1753706928248,9.25003642,193.48,193.44,26.71]
[1753706928951,16.78468397,193.5,193.45,0.99432314]
[1753706928952,31.20273792,193.5,193.45,0.99432314]
[1753706929153,36.64,193.51,193.48,26.0]
[1753706929154,51.05777732,193.51,193.48,26.0]
[1753706929333,51.05777732,193.51,193.48,26.71]
[1753706929744,51.05777732,193.51,193.48,26.0]
[1753706930138,9.25003642,193.5,193.47,26.0]
[1753706930338,5.16822574,193.49,193.47,26.0]
[1753706931259,9.25003642,193.5,193.47,26.0]
[1753706931260,14.41806336,193.5,193.47,26.0]
[1753706931957,0.03,193.52,193.51,26.0]
[1753706932462,0.03,193.52,193.51,0.99432314]
[1753706933245,0.03,193.52,193.51,0.28432314]
[1753706933738,0.03,193.52,193.51,0.99432314]
[1753706939352,0.03,193.52,193.51,26.28432314]
[1753706940866,0.03,193.52,193.48,89.0]
[1753706940867,26.38472039,193.52,193.48,89.0]
[1753706941066,9.25003642,193.49,193.45,37.24]
[1753706941572,14.41826216,193.49,193.48,26.0]
[1753706941950,5.16815115,193.5,193.48,26.0]
[1753706942556,14.41818757,193.5,193.48,26.0]
[1753706942868,14.73818757,193.5,193.48,26.0]
[1753706943073,16.78468397,193.48,193.42,0.66]
[1753706943247,9.25003642,193.46,193.4,9.25003642]
[1753706943440,14.41959804,193.44,193.4,37.24]
[1753706943776,5.16956162,193.44,193.43,26.0]
[1753706943959,5.16902718,193.46,193.43,26.0]
[1753706944159,9.25003642,193.45,193.43,26.0]
[1753706944680,5.16902718,193.46,193.44,26.66]
[1753706945380,16.78468397,193.45,193.39,1.5965]
[1753706945589,5.78009047,193.43,193.42,26.0]
[1753706946154,5.78009047,193.43,193.39,38.8165]
[1753706946478,5.78009047,193.42,193.39,26.06]
[1753706946862,6.48009047,193.41,193.39,0.06]
[1753706947064,5.78009047,193.4,193.39,0.06]
[1753706947456,10.95072128,193.4,193.39,0.06]
[1753706948160,10.95072128,193.4,193.39,1e-08]
[1753706948161,34.21549572,193.4,193.39,1e-08]
[1753706948352,38.07617116,193.4,193.39,1e-08]
[1753706948682,36.15729199,193.4,193.39,1e-08]
[1753706949264,32.29608069,193.4,193.39,1e-08]
[1753706950877,35.77475619,193.4,193.39,1e-08]
[1753706951262,31.91408075,193.4,193.39,1e-08]
[1753706951663,31.21408075,193.4,193.39,1e-08]
[1753706951985,31.21384584,193.41,193.39,1e-08]
[1753706952179,31.21384584,193.41,193.39,0.66000001]
[1753706952357,9.25876597,193.41,193.39,1e-08]
[1753706952557,9.25876597,193.41,193.39,0.66000001]
[1753706952758,9.25876597,193.4,193.39,1e-08]
[1753706952981,26.04344994,193.4,193.39,1e-08]
[1753706953185,26.74344994,193.4,193.39,1e-08]
[1753706953392,26.04344994,193.4,193.39,1e-08]
[1753706953567,31.21408075,193.4,193.39,1e-08]
[1753706954260,35.76416589,193.4,193.39,1e-08]
[1753706955065,31.91408075,193.4,193.39,1e-08]
[1753706961877,35.75692998,193.4,193.39,1e-08]
[1753706962389,16.78468397,193.39,193.35,0.06]
[1753706962595,26.04344994,193.36,193.35,0.06]
[1753706962779,31.21515039,193.36,193.35,0.06]
[1753706963311,67.81515039,193.36,193.35,0.06]
[1753706966094,67.81515039,193.36,193.35,0.72]
[1753706966695,67.81515039,193.36,193.35,0.06]
[1753706969906,51.03046642,193.36,193.35,0.72]
[1753706970208,31.21515039,193.36,193.35,0.72]
[1753706970981,31.21515039,193.36,193.35,0.06]
[1753706972014,31.21515039,193.36,193.35,0.73]
[1753706972880,27.74359796,193.36,193.35,0.73]
[1753706973578,10.95861084,193.38,193.35,0.73]
[1753706974003,5.78721354,193.38,193.35,0.73]
[1753706974214,10.95815611,193.39,193.35,0.73]
[1753706974423,12.92290646,193.46,193.38,26.0]
[1753706974710,5.78721354,193.43,193.4,26.0]
[1753706974887,5.78721354,193.44,193.41,0.67]
[1753706975919,21.9541491,193.45,193.41,0.67]
[1753706976283,10.95627647,193.46,193.43,26.0]
[1753706976609,10.95627647,193.46,193.44,0.67]
[1753706976815,10.95627647,193.46,193.45,0.67]
[1753706977019,10.95627647,193.46,193.43,26.67]
[1753706977389,10.95627647,193.46,193.44,0.67]
[1753706977700,10.95627647,193.46,193.45,0.67]
[1753706978613,10.95627647,193.46,193.43,26.0]
[1753706978843,5.78721354,193.45,193.43,26.0]
[1753706979001,5.78721354,193.45,193.43,26.67]
[1753706979392,5.78721354,193.45,193.43,26.0]
[1753706979720,5.78721354,193.45,193.44,0.67]
[1753706980295,5.16929439,193.45,193.44,0.67]
[1753706981098,5.16929439,193.45,193.43,26.0]
[1753706981420,5.16929439,193.45,193.39,0.06]
[1753706981421,16.78468397,193.43,193.39,0.06]
[1753706981604,22.57189751,193.4,193.39,0.06]
[1753706982334,27.74252832,193.4,193.39,0.06]
[1753706982500,27.74252832,193.4,193.39,0.73]
[1753706983117,5.78721354,193.41,193.39,0.73]
[1753706983440,5.78721354,193.42,193.4,0.67]
[1753706983813,10.95736517,193.42,193.4,0.67]
[1753706984000,5.17015163,193.42,193.4,0.67]
[1753706984200,10.95736517,193.42,193.4,0.67]
[1753706986196,5.78721354,193.41,193.4,0.67]
[1753706986507,5.78721354,193.41,193.39,26.06]
[1753706986913,5.78721354,193.4,193.39,26.06]
[1753706987296,5.78721354,193.4,193.39,0.06]
[1753706987609,6.50721354,193.4,193.39,0.06]
[1753706988208,34.24974186,193.4,193.39,0.06]
[1753706988825,28.46252832,193.4,193.39,0.06]
[1753706989216,34.24974186,193.4,193.39,0.06]
[1753706989735,28.46252832,193.4,193.39,0.06]
[1753706989903,36.18795904,193.4,193.39,0.06]
[1753706990102,39.66511247,193.4,193.39,0.06]
[1753706990955,45.45232601,193.4,193.39,1e-08]
[1753706994310,38.94511247,193.4,193.39,1e-08]
[1753706995114,16.37321496,193.4,193.39,0.67000001]
[1753706995452,3.86271536,193.4,193.39,26.67000001]
[1753706996033,9.03334617,193.4,193.39,26.67000001]
[1753706996235,9.03334617,193.4,193.39,0.67000001]
[1753706997410,5.17063081,193.4,193.39,0.67000001]
[1753706998050,10.95763688,193.41,193.39,0.67000001]
[1753706998549,10.95763688,193.41,193.39,1e-08]
[1753706998731,27.74232085,193.41,193.4,0.67]
[1753706998924,25.81834123,193.41,193.4,0.67]
[1753706999624,31.60555477,193.41,193.4,0.67]
[1753706999829,31.60555477,193.41,193.39,1e-08]
[1753707000140,27.74232085,193.41,193.39,0.67000001]
[1753707000837,5.78721354,193.4,193.39,1e-08]
[1753707001145,31.60577564,193.4,193.39,1e-08]
[1753707001518,32.29577564,193.4,193.39,1e-08]
[1753707001717,41.94662189,193.4,193.39,1e-08]
[1753707001929,45.42407417,193.4,193.39,1e-08]
[1753707003232,45.42389621,193.4,193.39,1e-08]
[1753707003440,45.42402412,193.4,193.39,1e-08]
[1753707005128,45.42495967,193.4,193.39,1e-08]
[1753707005448,38.94774613,193.4,193.39,1e-08]
[1753707006030,31.60643611,193.4,193.39,1e-08]
[1753707006426,31.60643611,193.4,193.39,0.67000001]
[1753707006626,9.0345386,193.4,193.39,0.67000001]
[1753707006826,9.0345386,193.4,193.39,26.67000001]
[1753707007639,14.82175214,193.4,193.39,1e-08]
[1753707007841,68.77643611,193.4,193.39,1e-08]
[1753707008161,81.90498186,193.4,193.39,1e-08]
[1753707008460,76.11776832,193.4,193.39,1e-08]
[1753707009127,75.42776832,193.4,193.39,1e-08]
[1753707010353,81.90498186,193.4,193.39,1e-08]
[1753707011356,75.42776832,193.4,193.39,1e-08]
[1753707014057,81.90498186,193.4,193.39,1e-08]
[1753707015129,81.21498186,193.4,193.39,1e-08]
[1753707015545,75.42776832,193.4,193.39,1e-08]
[1753707015737,71.95036634,193.4,193.39,1e-08]
[1753707016429,75.42963764,193.4,193.39,1e-08]
[1753707017361,75.42990897,193.4,193.39,1e-08]
[1753707019040,71.95036634,193.4,193.39,0.67000001]
[1753707019243,71.95036634,193.4,193.39,1e-08]
[1753707019449,81.9071072,193.4,193.39,1e-08]
[1753707021078,81.2171072,193.4,193.39,1e-08]
[1753707021370,75.42989366,193.4,193.39,1e-08]
[1753707021565,71.95036634,193.4,193.39,1e-08]
[1753707022239,75.43104279,193.4,193.39,1e-08]
[1753707023249,71.95036634,193.4,193.39,0.67000001]
[1753707024051,71.95036634,193.4,193.39,1e-08]
[1753707024257,52.8608,193.4,193.39,1e-08]
[1753707024459,75.43269751,193.4,193.39,1e-08]
[1753707025445,75.43269751,193.4,193.39,0.67000001]
[1753707026469,75.46269751,193.4,193.39,0.67000001]
[1753707026666,3.89390779,193.4,193.39,8.10941355]
[1753707026853,0.03,193.41,193.4,26.0]
[1753707027049,0.03,193.44,193.42,26.0]
[1753707027275,3.90202173,193.44,193.42,31.78721354]
[1753707027440,0.03,193.44,193.43,0.67]
[1753707028748,0.03,193.44,193.43,0.95432314]
[1753707029159,0.03,193.44,193.43,6.74153668]
[1753707029751,0.03,193.44,193.43,0.95432314]
[1753707030271,16.78468397,193.43,193.4,0.67]
[1753707030442,22.57189751,193.41,193.4,0.67]
[1753707030643,22.57189751,193.41,193.4,26.67]
[1753707031284,27.74226098,193.41,193.4,26.67]
[1753707032244,27.74226098,193.41,193.4,26.0]
[1753707032971,21.95504744,193.41,193.4,26.0]
[1753707033177,5.78721354,193.42,193.4,26.0]
[1753707033178,5.78721354,193.43,193.41,26.0]
[1753707033358,42.25721354,193.44,193.42,0.66]
[1753707033555,0.03,193.44,193.43,0.66]
[1753707034357,5.19956162,193.44,193.43,0.66]
[1753707034555,10.98677516,193.44,193.41,26.66]
[1753707035298,16.78468397,193.42,193.41,26.0]
[1753707035505,59.01189751,193.42,193.39,1e-08]
[1753707035711,22.57189751,193.4,193.39,1e-08]
[1753707035912,59.01189751,193.4,193.39,1e-08]
[1753707036102,59.72189751,193.4,193.39,1e-08]
[1753707036299,59.01189751,193.4,193.39,1e-08]
[1753707036873,64.18252832,193.4,193.39,1e-08]
[1753707037276,71.913911,193.4,193.39,1e-08]
[1753707037491,72.623911,193.4,193.39,1e-08]
[1753707038080,71.913911,193.4,193.39,1e-08]
[1753707038908,75.38346047,193.4,193.39,1e-08]
[1753707040783,71.51776913,193.4,193.39,1e-08]
[1753707044885,72.22776913,193.4,193.39,1e-08]
[1753707045300,16.78468397,193.39,193.35,1e-08]
[1753707045479,26.04144698,193.36,193.35,1e-08]
[1753707045803,62.48144698,193.36,193.35,1e-08]
[1753707046010,63.19144698,193.36,193.35,1e-08]
[1753707046685,68.36314743,193.36,193.35,1e-08]
[1753707047206,16.78468397,193.35,193.32,0.06]
[1753707047411,26.04144698,193.33,193.32,0.06]
[1753707048214,26.75144698,193.33,193.32,1e-08]
[1753707048411,36.00820999,193.33,193.31,1e-08]
[1753707048710,77.62098052,193.32,193.31,1e-08]
[1753707049895,67.65421751,193.32,193.31,1e-08]
[1753707050291,71.52237915,193.32,193.31,1e-08]
[1753707050805,67.65421751,193.32,193.31,1e-08]
[1753707051113,75.38986645,193.32,193.31,1e-08]
[1753707051314,71.52188361,193.32,193.31,1e-08]
[1753707054993,71.52188361,193.32,193.31,0.66000001]
[1753707056093,71.52188361,193.32,193.31,1e-08]
[1753707056891,54.73719964,193.32,193.31,1e-08]
[1753707057611,71.52188361,193.32,193.31,1e-08]
[1753707057813,71.52188361,193.32,193.31,0.66000001]
[1753707058518,71.52188361,193.32,193.31,1e-08]
[1753707058917,68.05519443,193.32,193.31,1e-08]
[1753707060019,74.55526826,193.32,193.31,1e-08]
[1753707060515,74.55526826,193.32,193.29,1e-08]
[1753707060516,28.36483163,193.3,193.29,1e-08]
[1753707060692,73.86580347,193.3,193.29,1e-08]
[1753707061789,37.40580347,193.3,193.29,1e-08]
[1753707062094,73.86580347,193.3,193.29,1e-08]
[1753707062489,31.61572964,193.3,193.29,1e-08]
[1753707062726,27.74806354,193.3,193.29,0.71000001]
[1753707063020,64.22806354,193.3,193.29,1e-08]
[1753707063715,68.08377147,193.3,193.29,1e-08]
[1753707064084,68.78377147,193.3,193.29,1e-08]
[1753707064623,16.78468397,193.29,193.27,1e-08]
[1753707064812,68.08388925,193.28,193.27,1e-08]
[1753707065011,68.78388925,193.28,193.27,1e-08]
[1753707065411,68.08388925,193.28,193.27,1e-08]
[1753707066001,64.92859885,193.28,193.27,1e-08]
[1753707066607,16.78468397,193.27,193.2,0.91]
[1753707066811,107.58562617,193.28,193.2,0.2]
[1753707066812,22.5747578,193.21,193.2,0.2]
[1753707067127,59.0747578,193.21,193.2,0.2]
[1753707067293,59.0747578,193.21,193.2,0.91]
[1753707067495,22.5747578,193.21,193.2,0.91]
[1753707068493,27.75047334,193.21,193.2,0.91]
[1753707070700,27.75047334,193.21,193.2,0.2]
[1753707071932,27.75047334,193.21,193.2,0.91]
[1753707072100,16.78468397,193.21,193.2,0.91]
[1753707072305,16.78468397,193.21,193.2,26.91]
[1753707072832,5.79007383,193.25,193.21,26.0]
[1753707073008,16.78468397,193.24,193.22,0.71]
[1753707073208,22.5747578,193.24,193.23,0.71]
[1753707073425,26.41722635,193.24,193.23,0.71]
[1753707073816,31.59213837,193.24,193.23,0.71]
[1753707074610,31.59213837,193.24,193.21,26.71]
[1753707074919,31.59213837,193.24,193.2,26.2]
[1753707074920,5.79007383,193.22,193.2,26.2]
[1753707075240,5.79007383,193.21,193.2,26.91]
[1753707075403,22.5747578,193.22,193.2,26.91]
[1753707075609,16.78468397,193.22,193.2,26.2]
[1753707075844,27.75020547,193.22,193.21,0.71]
[1753707077023,21.96013164,193.22,193.21,0.71]
[1753707079540,20.63076442,193.22,193.21,0.71]
[1753707079845,20.63076442,193.22,193.2,26.2]
[1753707080029,16.78468397,193.22,193.21,0.71]
[1753707080347,20.63076442,193.22,193.21,0.71]
[1753707080722,9.02152812,193.22,193.21,0.71]
[1753707081044,9.02152812,193.22,193.2,26.2]
[1753707081239,5.17544767,193.22,193.2,26.91]
[1753707081456,41.65525062,193.23,193.21,0.71]
[1753707081639,3.84737602,193.22,193.21,26.71]
[1753707081850,58.43955882,193.25,193.23,26.0]
[1753707082148,3.84716978,193.24,193.23,26.0]
[1753707082447,9.0220818,193.24,193.23,26.0]
[1753707082749,9.0220818,193.24,193.23,26.71]
[1753707084945,9.0220818,193.24,193.21,0.71]
[1753707085125,3.84716978,193.23,193.22,26.0]
[1753707086153,3.84716978,193.23,193.22,26.71]
[1753707086622,3.84716978,193.25,193.22,26.71]
[1753707086824,3.84716978,193.24,193.23,26.71]
[1753707087424,3.84716978,193.24,193.23,0.71]
[1753707087745,9.0220818,193.24,193.23,0.71]
[1753707088248,9.0220818,193.24,193.2,26.2]
[1753707088249,16.78468397,193.23,193.2,26.2]
[1753707088444,9.63724361,193.22,193.2,26.2]
[1753707088649,3.84716978,193.21,193.2,26.2]
[1753707089243,9.02288532,193.21,193.2,26.2]
[1753707089672,25.80756929,193.21,193.2,26.2]
[1753707089983,31.59764312,193.21,193.2,0.2]
[1753707090139,32.29764312,193.21,193.2,0.2]
[1753707090542,35.45417465,193.21,193.2,0.2]
[1753707090837,31.59764312,193.21,193.2,0.2]
[1753707091961,36.15557997,193.21,193.2,0.2]
[1753707092167,36.15557997,193.21,193.19,0.2]
[1753707092345,73.23133982,193.2,193.19,1e-08]
[1753707093146,25.19119216,193.2,193.19,1e-08]
[1753707093457,67.46126599,193.2,193.19,1e-08]
[1753707094042,72.63724942,193.2,193.19,1e-08]
[1753707095259,64.93074123,193.2,193.19,1e-08]
[1753707096161,78.44446822,193.2,193.17,1e-08]
[1753707096365,22.5747578,193.18,193.15,1e-08]
[1753707096667,22.5747578,193.16,193.15,1e-08]
[1753707096877,30.29841096,193.16,193.15,1e-08]
[1753707097199,30.29841096,193.16,193.0,1.589]
[1753707097200,16.78468397,193.13,193.0,1.589]
[1753707097473,16.78468397,193.08,193.01,0.65]
[1753707097636,16.78468397,193.06,193.04,26.0]
[1753707097837,16.78468397,193.06,193.05,0.65]
[1753707097838,53.36468397,193.06,193.05,0.65]
[1753707098176,5.18000518,193.05,193.02,0.65]
[1753707098545,5.79007383,193.03,192.98,0.65]
[1753707098859,5.79007383,193.0,192.98,0.65]
[1753707099054,5.79007383,193.0,192.95,1.6112]
[1753707099055,5.79007383,193.0,192.97,26.0]
[1753707099252,5.79007383,193.0,192.98,0.65]
[1753707099449,59.1547578,193.02,192.99,0.65]
[1753707099660,36.62,193.03,192.99,32.44007383]
[1753707099971,36.62,193.03,193.0,0.65]
[1753707100677,5.79007383,193.02,193.0,0.65]
[1753707100854,5.79007383,193.01,192.98,0.65]
[1753707101044,5.79007383,193.02,192.99,26.65]
[1753707101244,42.41007383,193.04,193.0,0.65]
[1753707101662,42.41007383,193.04,193.01,0.65]
[1753707102063,36.62,193.04,193.02,0.65]
[1753707102260,41.80028372,193.04,193.02,0.65]
[1753707102567,36.62,193.04,193.03,0.65]
[1753707102868,5.79007383,193.1,193.05,26.0]
[1753707103095,7.69329676,193.09,193.06,26.0]
[1753707103379,5.79007383,193.07,193.06,26.0]
[1753707103544,9.63671979,193.07,193.06,26.0]
[1753707104076,9.63671979,193.07,193.02,26.0]
[1753707104241,5.79007383,193.04,193.02,26.65]
[1753707104439,10.97045543,193.04,193.02,26.65]
[1753707105154,10.97045543,193.04,193.0,1.5511]
[1753707105155,22.5747578,193.03,193.0,1.5511]
[1753707105474,5.79007383,193.01,193.0,1.5511]
[1753707105770,5.79007383,193.02,193.01,26.0]
[1753707106154,10.9708841,193.02,193.01,26.0]
[1753707106356,10.9708841,193.02,192.99,0.65]
[1753707106553,5.79007383,193.01,192.98,26.0]
[1753707106875,5.79007383,193.01,192.98,26.65]
[1753707107078,47.6908841,193.02,192.99,26.65]
[1753707107947,47.6908841,193.02,192.99,26.0]
[1753707108142,10.97128348,193.01,192.99,26.0]
[1753707108342,10.97128348,193.01,192.98,26.0]
[1753707108577,10.97128348,193.01,192.99,0.65]
[1753707108764,6.49007383,193.0,192.97,26.0]
[1753707109067,6.49007383,193.0,192.94,0.65]
[1753707109068,5.79007383,192.98,192.94,0.65]
[1753707109275,36.72,192.99,192.94,0.65]
[1753707109458,5.79007383,192.98,192.95,0.65]
[1753707109969,5.79007383,192.98,192.96,0.65]
[1753707110172,0.7,193.02,192.96,0.65]
[1753707110173,47.69174875,192.99,192.96,26.0]
[1753707110359,16.78468397,193.03,192.97,0.65]
[1753707110556,5.79007383,193.01,192.98,26.0]
[1753707110766,5.79007383,193.01,192.96,31.79007383]
[1753707110951,5.79007383,193.0,192.97,0.65]
[1753707111656,5.79007383,192.99,192.98,26.0]
[1753707111846,36.72,193.02,192.98,0.65]
[1753707112050,5.79007383,193.0,192.98,0.65]
[1753707112268,10.97142701,193.0,192.98,0.65]
[1753707112579,10.97142701,193.0,192.97,26.0]
[1753707112881,41.90084288,193.02,192.98,26.65]
[1753707113062,0.7,193.06,192.99,0.65]
[1753707113261,5.79007383,193.06,193.02,26.0]
[1753707113576,21.96415255,193.07,193.03,0.65]
[1753707113577,41.89946858,193.07,193.03,0.65]
[1753707113874,41.89946858,193.07,193.04,0.65]
[1753707114087,36.72,193.07,193.04,0.65]
[1753707114262,36.72,193.07,193.06,26.0]
[1753707114463,41.89946858,193.07,193.06,26.0]
[1753707114663,5.17946858,193.07,193.06,26.0]
[1753707114965,10.96954241,193.07,193.03,26.0]
[1753707115160,10.96954241,193.07,193.04,0.65]
[1753707115466,53.50468397,193.09,193.05,26.65]
[1753707115467,42.51007383,193.09,193.05,26.65]
[1753707116052,5.79007383,193.09,193.05,26.65]
[1753707116356,22.5747578,193.11,193.06,0.65]
[1753707116573,0.03,193.13,193.08,5.79007383]
[1753707116758,36.72,193.12,193.09,0.65]
[1753707117464,36.72,193.12,193.1,6.44007383]
[1753707118260,5.20786565,193.13,193.1,6.44007383]
[1753707118464,5.20786565,193.13,193.1,0.65]
[1753707119362,0.03,193.13,193.1,5.79007383]
[1753707119680,0.03,193.13,193.11,6.44007383]
[1753707120054,0.03,193.13,193.12,0.65]
[1753707120281,0.03,193.13,193.12,32.72439697]
[1753707120456,0.03,193.13,193.12,31.79007383]
[1753707120790,0.03,193.13,193.12,26.0]
[1753707122783,43.24007383,193.13,193.09,26.0]
[1753707122985,5.79007383,193.12,193.07,0.82216157]
[1753707123188,0.68,193.12,193.07,6.75439697]
[1753707123374,5.79007383,193.12,193.1,26.0]
[1753707124187,5.79007383,193.11,193.07,0.68]
[1753707124693,5.79007383,193.09,193.04,1.5681]
[1753707124904,5.79007383,193.08,193.04,1.5681]
[1753707125189,5.79007383,193.08,193.05,26.0]
[1753707125576,5.79007383,193.07,193.02,0.96432314]
[1753707125789,42.53007383,193.07,193.02,0.96432314]
[1753707125993,42.53007383,193.07,193.02,0.82216157]
[1753707126299,42.53007383,193.07,193.04,26.0]
[1753707126300,5.79007383,193.06,193.04,26.0]
[1753707126458,47.70975278,193.07,193.02,6.6122354]
[1753707126787,47.70975278,193.07,193.05,26.0]
[1753707127287,41.91967895,193.07,193.05,26.0]
[1753707128373,36.74,193.07,193.05,26.68]
[1753707129080,41.91954043,193.07,193.05,26.68]
[1753707130670,41.91946858,193.07,193.06,0.68]
[1753707130972,41.91946858,193.07,193.04,26.0]
[1753707131183,5.79007383,193.06,193.04,26.0]
[1753707131367,47.70954241,193.07,193.04,26.0]
[1753707132376,41.91946858,193.07,193.05,26.0]
[1753707132573,36.74,193.07,193.06,0.68]
[1753707132895,41.87899006,193.09,193.06,0.68]
[1753707133280,47.66906389,193.09,193.04,26.0]
[1753707133611,3.85412346,193.08,193.05,0.68]
[1753707134283,5.17946858,193.07,193.04,26.0]
[1753707135173,10.96954241,193.07,193.04,26.0]
[1753707135593,5.17946858,193.07,193.04,26.0]
[1753707135970,5.17946858,193.07,193.04,26.68]
[1753707137374,9.04229139,193.06,193.04,26.68]
[1753707137700,5.17985179,193.06,193.04,26.68]
[1753707138369,5.17951586,193.07,193.04,26.06]
[1753707138602,0.68,193.1,193.05,0.68]
[1753707138603,5.79007383,193.1,193.05,0.68]
[1753707138802,49.56666114,193.09,193.04,31.85007383]
[1753707139102,49.56666114,193.09,193.04,26.06]
[1753707139103,7.72772904,193.08,193.04,26.06]
[1753707139300,3.86386452,193.07,193.04,26.74]
[1753707139598,3.86386452,193.06,193.04,26.74]
[1753707140396,5.17946858,193.07,193.05,0.68]
[1753707140575,3.86751773,193.06,193.05,0.68]
[1753707141703,5.17946858,193.07,193.05,0.68]
[1753707142204,36.66,193.09,193.04,31.85007383]
[1753707142379,41.8390156,193.09,193.06,0.68]
[1753707142580,41.8390156,193.09,193.07,0.68]
[1753707142899,36.66,193.09,193.08,0.68]
[1753707143072,5.20793696,193.13,193.11,26.0]
[1753707143277,45.68645175,193.12,193.11,26.0]
[1753707145100,41.81812758,193.12,193.11,26.0]
[1753707146282,48.28820141,193.12,193.06,1.6434]
[1753707146596,5.17920033,193.08,193.05,0.68]
[1753707146795,36.62,193.09,193.07,26.0]
[1753707146999,5.20787871,193.13,193.11,26.0]
[1753707147300,5.20787871,193.13,193.08,6.47007383]
[1753707147301,0.03,193.13,193.12,6.47007383]
[1753707149181,0.03,193.13,193.12,32.47007383]
[1753707149383,0.03,193.13,193.12,32.75439697]
[1753707150381,0.03,193.13,193.12,32.47007383]
[1753707150792,0.03,193.13,193.12,32.51007383]
[1753707151023,0.03,193.13,193.12,32.79439697]
[1753707151915,0.03,193.13,193.12,11.97252455]
[1753707152695,0.03,193.13,193.12,1.00432314]
[1753707152919,0.03,193.13,193.12,5.79007383]